fUSD/lending_fUSD_20251201
["ID","MTS","AMOUNT","RATE_DAILY","PERIOD"]
[395242365,1764564649137,-8000.0,0.00016149,2]
[395242366,1764564649146,-8000.0,0.00016149,2]
[395242367,1764564649155,-8000.0,0.00016149,2]
[395242368,1764564649164,-8000.0,0.00016149,2]
[395242369,1764564649174,-411.59586191,0.00016149,2]
[395242370,1764564649182,-1000.0,0.00016149,2]
[395242371,1764564649192,-1000.0,0.00016149,2]
[395242372,1764564649201,-1000.0,0.00016149,2]
[395242373,1764564649211,-151.0,0.00016149,2]
[395242374,1764564649220,-1000.0,0.00016149,2]
[395242375,1764564649229,-1000.0,0.00016149,2]
[395242376,1764564649238,-1000.0,0.00016149,2]
[395242377,1764564649247,-1000.0,0.00016149,2]
[395242378,1764564649256,-1000.0,0.00016149,2]
[395242379,1764564649265,-1000.0,0.00016149,2]
[395242380,1764564649275,-1000.0,0.00016149,2]
[395242381,1764564649283,-1000.0,0.00016149,2]
[395242382,1764564649292,-1000.0,0.00016149,2]
[395242383,1764564649302,-1000.0,0.00016149,2]
[395242384,1764564649311,-3000.0,0.00016149,2]
[395242385,1764564649320,-1000.0,0.00016149,2]
[395242386,1764564649329,-1000.0,0.00016149,2]
[395242387,1764564649338,-1000.0,0.00016149,2]
[395242388,1764564649347,-3000.0,0.00016149,2]
[395242389,1764564649356,-1000.0,0.00016149,2]
[395242390,1764564649366,-1000.0,0.00016149,2]
[395242391,1764564649375,-1000.0,0.00016149,2]
[395242392,1764564649384,-3000.0,0.00016149,2]
[395242393,1764564649393,-1000.0,0.00016149,2]
[395242394,1764564649402,-1000.0,0.00016149,2]
[395242395,1764564649412,-1000.0,0.00016149,2]
[395242396,1764564649421,-3000.0,0.00016149,2]
[395242397,1764564649430,-2500.0,0.00016149,2]
[395242398,1764564649440,-1000.0,0.00016149,2]
[395242399,1764564649449,-1000.0,0.00016149,2]
[395242400,1764564649459,-1000.0,0.00016149,2]
[395242401,1764564649468,-3000.0,0.00016149,2]
[395242402,1764564649477,-2500.0,0.00016149,2]
[395242403,1764564649486,-1000.0,0.00016149,2]
[395242404,1764564649496,-1000.0,0.00016149,2]
[395242405,1764564649505,-1000.0,0.00016149,2]
[395242406,1764564649514,-3000.0,0.00016149,2]
[395242407,1764564649523,-2500.0,0.00016149,2]
[395242408,1764564649532,-1000.0,0.00016149,2]
[395242409,1764564649541,-1000.0,0.00016149,2]
[395242410,1764564649550,-3000.0,0.00016149,2]
[395242411,1764564649559,-2500.0,0.00016149,2]
[395242412,1764564649569,-762.94247186,0.00016149,2]
[395242413,1764564649578,-1000.0,0.00016149,2]
[395242414,1764564649587,-3000.0,0.00016149,2]
[395242415,1764564649596,-2500.0,0.00016149,2]
[395242416,1764564649605,-3000.0,0.00016149,2]
[395242417,1764564649614,-2500.0,0.00016149,2]
[395242418,1764564649623,-1000.0,0.00016149,2]
[395242419,1764564649632,-3000.0,0.00016149,2]
[395242420,1764564649641,-2500.0,0.00016149,2]
[395242421,1764564649650,-3000.0,0.00016149,2]
[395242422,1764564649659,-2500.0,0.00016149,2]
[395242423,1764564649668,-3000.0,0.00016149,2]
[395242424,1764564649677,-2500.0,0.00016149,2]
[395242425,1764564649685,-620.0,0.00016149,2]
[395242426,1764564649695,-3000.0,0.00016149,2]
[395242427,1764564649704,-2500.0,0.00016149,2]
[395242428,1764564649713,-2500.0,0.00016149,2]
[395242429,1764564649722,-2500.0,0.00016149,2]
[395242430,1764564649731,-2500.0,0.00016149,2]
[395242431,1764564649740,-10000.0,0.00016149,2]
[395242432,1764564649748,-10000.0,0.00016149,2]
[395242433,1764564649758,-10000.0,0.00016149,2]
[395242434,1764564649767,-10000.0,0.00016149,2]
[395242435,1764564649776,-10000.0,0.00016149,2]
[395242436,1764564649785,-10000.0,0.00016149,2]
[395242437,1764564649794,-10000.0,0.00016149,2]
[395242438,1764564649803,-10000.0,0.00016149,2]
[395242439,1764564649814,-578.20924308,0.00016149,2]
[395242440,1764564649825,-10000.0,0.00016149,2]
[395242441,1764564649833,-10000.0,0.00016149,2]
[395242442,1764564649842,-10000.0,0.00016149,2]
[395242443,1764564649853,-194.72792766,0.00016149,2]
[395242444,1764564649862,-10000.0,0.00016149,2]
[395242445,1764564649871,-194.72792766,0.00016149,2]
[395242446,1764564649879,-10000.0,0.00016149,2]
[395242447,1764564649889,-1500.0,0.00016149,2]
[395242448,1764564649899,-1500.0,0.00016149,2]
[395242449,1764564649908,-1500.0,0.00016149,2]
[395242450,1764564649917,-1500.0,0.00016149,2]
[395242451,1764564649926,-500.0,0.00016149,2]
[395242452,1764564649934,-1500.0,0.00016149,2]
[395242453,1764564649943,-500.0,0.00016149,2]
[395242454,1764564649952,-1500.0,0.00016149,2]
[395242455,1764564649961,-500.0,0.00016149,2]
[395242456,1764564649970,-1500.0,0.00016149,2]
[395242457,1764564649979,-500.0,0.00016149,2]
[395242458,1764564649988,-1500.0,0.00016149,2]
[395242459,1764564649997,-500.0,0.00016149,2]
[395242460,1764564650007,-1500.0,0.00016149,2]
[395242461,1764564650016,-500.0,0.00016149,2]
[395242462,1764564650025,-1500.0,0.00016149,2]
[395242463,1764564650034,-500.0,0.00016149,2]
[395242464,1764564650043,-559.7798745,0.00016149,2]
[395242465,1764564650052,-500.0,0.00016149,2]
[395242466,1764564650061,-500.0,0.00016149,2]
[395242467,1764564650070,-500.0,0.00016149,2]
[395242468,1764564650079,-500.0,0.00016149,2]
[395242469,1764564650088,-257.91778498,0.00016149,2]
[395242470,1764564650097,-500.0,0.00016149,2]
[395242471,1764564650106,-500.0,0.00016149,2]
[395242472,1764564650115,-226.43577512,0.0001615,2]
[395242473,1764564650123,-2092.314224,0.0001615,2]
[395242474,1764564650134,-150.0,0.0001615,2]
[395242475,1764564650143,-150.0,0.00016152,2]
[395242476,1764564650152,-158.68270837,0.00016163,2]
[395242477,1764564650162,-218.77357495,0.00016163,2]
[395242478,1764564650170,-150.0,0.00016164,2]
[395242479,1764564650179,-151.0,0.00016165,2]
[395242480,1764564650188,-150.0,0.00016166,2]
[395242481,1764564650197,-1379.0,0.00016167,2]
[395242482,1764564650206,-836.0,0.00016167,2]
[395242483,1764564650216,-150.0,0.00016176,2]
[395242484,1764564650225,-158.68270837,0.0001618,2]
[395242485,1764564650234,-218.77357495,0.0001618,2]
[395242486,1764564650244,-150.0,0.00016183,2]
[395242487,1764564650253,-150.0,0.0001619,2]
[395242488,1764564650262,-1213.78,0.00016192,2]
[395242489,1764564650273,-150.0,0.00016194,2]
[395242490,1764564650283,-150.0,0.00016196,2]
[395242491,1764564650292,-158.68270837,0.00016197,2]
[395242492,1764564650301,-218.77357495,0.00016197,2]
[395242493,1764564650310,-150.0,0.00016202,2]
[395242494,1764564650320,-150.0,0.00016214,2]
[395242495,1764564650329,-158.68270837,0.00016214,2]
[395242496,1764564650339,-218.77357495,0.00016214,2]
[395242497,1764564650348,-150.0,0.00016219,2]
[395242498,1764564650357,-150.0,0.00016225,2]
[395242499,1764564650367,-150.0,0.00016228,2]
[395242500,1764564650377,-158.68270837,0.00016231,2]
[395242501,1764564650387,-218.77357495,0.00016231,2]
[395242502,1764564650397,-150.0,0.00016243,2]
[395242503,1764564650407,-150.0,0.00016245,2]
[395242504,1764564650416,-158.68270837,0.00016249,2]
[395242505,1764564650427,-218.77357495,0.00016249,2]
[395242506,1764564650436,-150.0,0.00016254,2]
[395242507,1764564650446,-150.0,0.00016255,2]
[395242508,1764564650456,-158.68270837,0.00016266,2]
[395242509,1764564650466,-218.77357495,0.00016266,2]
[395242510,1764564650475,-150.0,0.00016274,2]
[395242511,1764564650485,-150.0,0.00016276,2]
[395242512,1764564650495,-150.0,0.00016281,2]
[395242513,1764564650504,-158.68270837,0.00016283,2]
[395242514,1764564650514,-218.77357495,0.00016283,2]
[395242515,1764564650526,-150.0,0.00016283,2]
[395242516,1764564650536,-150.0,0.00016296,2]
[395242517,1764564650545,-158.68270837,0.000163,2]
[395242518,1764564650555,-218.77357495,0.000163,2]
[395242519,1764564650564,-816.7,0.00016303,11]
[395242520,1764564650573,-1379.0,0.00016304,2]
[395242521,1764564650583,-836.0,0.00016304,2]
[395242522,1764564650593,-150.0,0.00016307,2]
[395242523,1764564650602,-150.0,0.00016307,2]
[395242524,1764564650611,-150.0,0.00016307,2]
[395242525,1764564650620,-150.0,0.00016313,2]
[395242526,1764564650629,-158.68270837,0.00016317,2]
[395242527,1764564650639,-218.77357495,0.00016317,2]
[395242528,1764564650648,-150.0,0.00016329,2]
[395242529,1764564650657,-207.4,0.00016329,2]
[395242530,1764564650666,-1644.54,0.0001633,2]
[395242531,1764564650676,-200.0,0.0001633,2]
[395242532,1764564650685,-200.0,0.0001633,2]
[395242533,1764564650694,-500.0,0.0001633,2]
[395242534,1764564650703,-500.0,0.00016331,2]
[395242535,1764564650713,-150.0,0.00016333,2]
[395242536,1764564650723,-158.68270837,0.00016334,2]
[395242537,1764564650733,-218.77357495,0.00016334,2]
[395242538,1764564650742,-150.0,0.00016338,2]
[395242539,1764564650751,-150.0,0.00016342,2]
[395242540,1764564650760,-150.0,0.00016349,2]
[395242541,1764564650771,-158.68270837,0.00016351,2]
[395242542,1764564650780,-218.77357495,0.00016351,2]
[395242543,1764564650790,-150.0,0.00016359,2]
[395242544,1764564650799,-150.0,0.00016369,2]
[395242545,1764564650809,-158.68270837,0.00016369,2]
[395242546,1764564650824,-218.77357495,0.00016369,2]
[395242547,1764564650833,-175.6,0.00016371,2]
[395242548,1764564650842,-150.0,0.00016371,2]
[395242549,1764564650854,-963.07551786,0.00016373,2]
[395242550,1764564650863,-11342.96089445,0.0001638,2]
[395242551,1764564650874,-150.0,0.00016384,2]
[395242552,1764564650884,-150.0,0.00016385,2]
[395242553,1764564650895,-158.68270837,0.00016386,2]
[395242554,1764564650904,-218.77357495,0.00016386,2]
[395242555,1764564650913,-150.0,0.000164,2]
[395242556,1764564650923,-150.0,0.00016401,2]
[395242557,1764564650939,-150.0,0.00016402,2]
[395242558,1764564650951,-158.68270837,0.00016403,2]
[395242559,1764564650961,-218.77357495,0.00016403,2]
[395242560,1764564650970,-150.0,0.00016411,2]
[395242561,1764564650980,-158.68270837,0.0001642,2]
[395242562,1764564650989,-150.0,0.0001642,2]
[395242563,1764564650998,-218.77357495,0.0001642,2]
[395242564,1764564651007,-150.0,0.0001642,2]
[395242565,1764564651017,-150.0,0.0001643,2]
[395242566,1764564651026,-150.0,0.0001643,2]
[395242567,1764564651035,-1193.0,0.00016433,2]
[395242568,1764564651044,-158.68270837,0.00016437,2]
[395242569,1764564651053,-218.77357495,0.00016437,2]
[395242570,1764564651063,-150.0,0.00016438,2]
[395242571,1764564651072,-500.0,0.00016438,2]
[395242572,1764564651081,-383.87106597,0.00016438,2]
[395242573,1764564651090,-322.63,0.00016438,2]
[395242574,1764564651099,-150.0,0.00016438,2]
[395242575,1764564651108,-800.0,0.00016438,2]
[395242576,1764564651118,-600.0,0.00016438,2]
[395242577,1764564651127,-250.0,0.00016438,4]
[395242578,1764564651136,-163.94,0.0001644,2]
[395242579,1764564651145,-1379.0,0.00016441,2]
[395242580,1764564651155,-836.0,0.00016441,2]
[395242581,1764564651164,-158.68270837,0.00016454,2]
[395242582,1764564651173,-218.77357495,0.00016454,2]
[395242583,1764564651182,-150.0,0.00016455,2]
[395242584,1764564651192,-150.0,0.00016459,2]
[395242585,1764564651201,-150.0,0.00016461,2]
[395242586,1764564651212,-150.0,0.00016464,2]
[395242587,1764564651221,-158.68270837,0.00016472,2]
[395242588,1764564651230,-218.77357495,0.00016472,2]
[395242589,1764564651239,-798.51664652,0.00016475,2]
[395242590,1764564651249,-1193.0,0.00016475,2]
[395242591,1764564651258,-604.07312412,0.00016482,2]
[395242592,1764564651268,-150.0,0.00016488,2]
[395242593,1764564651277,-158.68270837,0.00016489,2]
[395242594,1764564651287,-218.77357495,0.00016489,2]
[395242595,1764564651296,-150.0,0.0001649,2]
[395242596,1764564651305,-150.0,0.00016492,2]
[395242597,1764564651314,-150.0,0.00016493,2]
[395242598,1764564651324,-158.68270837,0.00016506,2]
[395242599,1764564651333,-218.77357495,0.00016506,2]
[395242600,1764564651343,-150.0,0.00016509,2]
[395242601,1764564651352,-150.0,0.00016516,2]
[395242602,1764564651362,-150.0,0.00016518,2]
[395242603,1764564651371,-427.65493559,0.00016521,2]
[395242604,1764564651380,-31647.64756146,0.00016522,2]
[395242605,1764564651390,-150.0,0.00016523,2]
[395242606,1764564651399,-158.68270837,0.00016523,2]
[395242607,1764564651408,-218.77357495,0.00016523,2]
[395242608,1764564651418,-1231.98120029,0.00016532,5]
[395242609,1764564651427,-150.0,0.00016533,2]
[395242610,1764564651436,-158.68270837,0.0001654,2]
[395242611,1764564651445,-218.77357495,0.0001654,2]
[395242612,1764564651455,-150.0,0.00016542,2]
[395242613,1764564651465,-150.0,0.00016547,2]
[395242614,1764564651474,-150.0,0.00016548,2]
[395242615,1764564651484,-150.0,0.00016554,2]
[395242616,1764564651493,-158.68270837,0.00016557,2]
[395242617,1764564651502,-218.77357495,0.00016557,2]
[395242618,1764564651511,-150.0,0.00016562,2]
[395242619,1764564651520,-150.0,0.00016562,2]
[395242620,1764564651529,-150.0,0.00016562,2]
[395242621,1764564651539,-2500.0,0.00016564,2]
[395242622,1764564651549,-150.0,0.00016568,2]
[395242623,1764564651558,-158.68270837,0.00016575,2]
[395242624,1764564651568,-218.77357495,0.00016575,2]
[395242625,1764564651577,-500.0,0.00016575,2]
[395242626,1764564651586,-150.0,0.00016576,2]
[395242627,1764564651596,-816.7,0.00016577,12]
[395242628,1764564651605,-1379.0,0.00016578,2]
[395242629,1764564651615,-836.0,0.00016578,2]
[395242630,1764564651625,-150.0,0.00016585,2]
[395242631,1764564651634,-158.68270837,0.00016592,2]
[395242632,1764564651643,-218.77357495,0.00016592,2]
[395242633,1764564651653,-150.0,0.00016594,2]
[395242634,1764564651663,-484.48020322,0.000166,2]
[395242635,1764564651673,-150.0,0.00016603,2]
[395242636,1764564651683,-1644.63910733,0.00016604,2]
[395242637,1764564651692,-150.0,0.00016606,2]
[395242638,1764564651702,-158.68270837,0.00016609,2]
[395242639,1764564651711,-218.77357495,0.00016609,2]
[395242640,1764564651720,-150.0,0.00016615,2]
[395242641,1764564651730,-150.0,0.00016616,2]
[395242642,1764564651740,-150.0,0.0001662,2]
[395242643,1764564651750,-158.68270837,0.00016626,2]
[395242644,1764564651759,-218.77357495,0.00016626,2]
[395242645,1764564651769,-150.0,0.00016635,2]
[395242646,1764564651778,-158.68270837,0.00016643,2]
[395242647,1764564651787,-218.77357495,0.00016643,2]
[395242648,1764564651796,-150.0,0.00016647,2]
[395242649,1764564651807,-150.0,0.00016647,2]
[395242650,1764564651820,-150.0,0.00016647,2]
[395242651,1764564651830,-150.0,0.00016658,2]
[395242652,1764564651839,-5491.65035635,0.0001666,2]
[395242653,1764564651848,-484.4802032,0.0001666,2]
[395242654,1764564651859,-158.68270837,0.0001666,2]
[395242655,1764564651868,-218.77357495,0.0001666,2]
[395242656,1764564651878,-150.0,0.00016664,2]
[395242657,1764564651890,-527.11,0.00016664,2]
[395242658,1764564651899,-150.0,0.00016668,2]
[395242659,1764564651909,-150.0,0.00016673,2]
[395242660,1764564651918,-150.0,0.00016677,2]
[395242661,1764564651928,-158.68270837,0.00016677,2]
[395242662,1764564651938,-218.77357495,0.00016677,2]
[395242663,1764564651948,-150.0,0.00016693,2]
[395242664,1764564651960,-158.68270837,0.00016695,2]
[395242665,1764564651978,-218.77357495,0.00016695,2]
[395242666,1764564651988,-151.0,0.00016697,2]
[395242667,1764564651998,-151.0,0.00016697,2]
[395242668,1764564652009,-3000.0,0.00016697,2]
[395242669,1764564652019,-151.0,0.00016697,2]
[395242670,1764564652028,-553.64373807,0.00016697,2]
[395242671,1764564652037,-642.94,0.00016697,2]
[395242672,1764564652047,-201.93286099,0.00016697,2]
[395242673,1764564652056,-201.93286099,0.00016697,2]
[395242674,1764564652066,-150.0,0.00016699,2]
[395242675,1764564652076,-9009.95799249,0.000167,2]
[395242676,1764564652086,-1000.0,0.000167,2]
[395242677,1764564652096,-150.0,0.00016708,2]
[395242678,1764564652105,-158.68270837,0.00016712,2]
[395242679,1764564652115,-218.77357495,0.00016712,2]
[395242680,1764564652126,-163.1222244,0.00016712,2]
[395242681,1764564652135,-150.0,0.00016712,2]
[395242682,1764564652145,-151.0,0.00016713,2]
[395242683,1764564652154,-1379.0,0.00016715,2]
[395242684,1764564652164,-836.0,0.00016715,2]
[395242685,1764564652174,-484.4802032,0.0001672,2]
[395242686,1764564652183,-150.0,0.00016721,2]
[395242687,1764564652194,-150.0,0.00016723,2]
[395242688,1764564652204,-150.0,0.00016725,2]
[395242689,1764564652214,-500.0,0.00016726,2]
[395242690,1764564652224,-500.0,0.00016726,2]
[395242691,1764564652233,-500.0,0.00016726,2]
[395242692,1764564652243,-500.0,0.00016726,2]
[395242693,1764564652252,-500.0,0.00016726,2]
[395242694,1764564652261,-158.68270837,0.00016729,2]
[395242695,1764564652271,-218.77357495,0.00016729,2]
[395242696,1764564652280,-150.0,0.00016739,2]
[395242697,1764564652289,-6911.10840627,0.00016745,2]
[395242698,1764564652298,-158.68270837,0.00016746,2]
[395242699,1764564652307,-218.77357495,0.00016746,2]
[395242700,1764564652317,-150.0,0.00016751,2]
[395242701,1764564652327,-150.0,0.00016752,2]
[395242702,1764564652336,-150.0,0.0001676,2]
[395242703,1764564652345,-158.68270837,0.00016763,2]
[395242704,1764564652354,-218.77357495,0.00016763,2]
[395242705,1764564652363,-823.0,0.00016765,2]
[395242706,1764564652373,-150.0,0.00016767,2]
[395242707,1764564652382,-1193.0,0.0001677,2]
[395242708,1764564652391,-150.0,0.0001677,2]
[395242709,1764564652401,-150.0,0.00016774,2]
[395242710,1764564652410,-500.0,0.00016777,2]
[395242711,1764564652420,-150.0,0.00016777,2]
[395242712,1764564652429,-484.4802032,0.0001678,2]
[395242713,1764564652439,-158.68270837,0.0001678,2]
[395242714,1764564652448,-218.77357495,0.0001678,2]
[395242715,1764564652459,-150.0,0.00016781,2]
[395242716,1764564652468,-158.68270837,0.00016798,2]
[395242717,1764564652478,-218.77357495,0.00016798,2]
[395242718,1764564652488,-1000.0,0.000168,2]
[395242719,1764564652497,-150.0,0.00016801,2]
[395242720,1764564652507,-150.0,0.00016803,2]
[395242721,1764564652518,-150.0,0.00016811,2]
[395242722,1764564652527,-158.68270837,0.00016815,2]
[395242723,1764564652537,-218.77357495,0.00016815,2]
[395242724,1764564652548,-150.0,0.00016822,2]
[395242725,1764564652558,-150.0,0.00016827,2]
[395242726,1764564652568,-150.0,0.0001683,2]
[395242727,1764564652578,-150.0,0.00016832,2]
[395242728,1764564652588,-158.68270837,0.00016832,2]
[395242729,1764564652597,-218.77357495,0.00016832,2]
[395242730,1764564652608,-150.0,0.0001684,2]
[395242731,1764564652617,-484.4802032,0.0001684,2]
[395242732,1764564652626,-158.68270837,0.00016849,2]
[395242733,1764564652636,-218.77357495,0.00016849,2]
[395242734,1764564652646,-816.7,0.00016851,13]
[395242735,1764564652655,-1379.0,0.00016852,2]
[395242736,1764564652664,-836.0,0.00016852,2]
[395242737,1764564652674,-150.0,0.00016856,2]
[395242738,1764564652684,-222.76990664,0.00016858,2]
[395242739,1764564652693,-150.0,0.00016863,2]
[395242740,1764564652702,-200.0,0.00016863,2]
[395242741,1764564652832,-200.0,0.00016864,2]
[395242742,1764564652848,-200.0,0.00016864,2]
[395242743,1764564652859,-158.68270837,0.00016866,2]
[395242744,1764564652868,-218.77357495,0.00016866,2]
[395242745,1764564652878,-150.0,0.00016869,2]
[395242746,1764564652888,-150.0,0.00016873,2]
[395242747,1764564652898,-150.0,0.00016877,2]
[395242748,1764564652908,-200.0,0.00016878,2]
[395242749,1764564652917,-541.75099719,0.00016878,2]
[395242750,1764564652927,-150.0,0.0001688,2]
[395242751,1764564652936,-150.0,0.00016882,2]
[395242752,1764564652946,-158.68270837,0.00016883,2]
[395242753,1764564652955,-218.77357495,0.00016883,2]
[395242754,1764564652964,-150.0,0.00016894,2]
[395242755,1764564652974,-150.0,0.00016898,2]
[395242756,1764564652984,-500.0,0.00016899,2]
[395242757,1764564652993,-500.0,0.00016899,2]
[395242758,1764564653003,-500.0,0.00016899,2]
[395242759,1764564653013,-545.80682701,0.00016899,2]
[395242760,1764564653022,-500.0,0.00016899,2]
[395242761,1764564653032,-500.0,0.00016899,2]
[395242762,1764564653041,-500.0,0.00016899,2]
[395242763,1764564653051,-530.10808563,0.00016899,2]
[395242764,1764564653060,-10000.0,0.000169,2]
[395242765,1764564653069,-644.42,0.000169,2]
[395242766,1764564653080,-1000.0,0.000169,2]
[395242767,1764564653090,-798.51664652,0.000169,2]
[395242768,1764564653100,-963.07551786,0.000169,2]
[395242769,1764564653109,-31647.64756146,0.000169,2]
[395242770,1764564653119,-3507.19708403,0.000169,2]
[395242771,1764564653129,-484.4802032,0.000169,2]
[395242772,1764564653138,-8300.0,0.000169,2]
[395242773,1764564653148,-158.68270837,0.00016901,2]
[395242774,1764564653158,-218.77357495,0.00016901,2]
[395242775,1764564653168,-3292.0,0.00016903,2]
[395242776,1764564653178,-150.0,0.00016908,2]
[395242777,1764564653187,-158.68270837,0.00016918,2]
[395242778,1764564653198,-218.77357495,0.00016918,2]
[395242779,1764564653207,-1297.37,0.00016924,2]
[395242780,1764564653217,-1000.0,0.00016924,2]
[395242781,1764564653227,-1000.0,0.00016924,2]
[395242782,1764564653236,-1000.0,0.00016924,2]
[395242783,1764564653246,-1000.0,0.00016924,2]
[395242784,1764564653256,-150.0,0.00016925,2]
[395242785,1764564653266,-150.0,0.00016928,2]
[395242786,1764564653276,-150.0,0.00016932,2]
[395242787,1764564653286,-150.0,0.00016933,2]
[395242788,1764564653295,-150.0,0.00016934,2]
[395242789,1764564653305,-158.68270837,0.00016935,2]
[395242790,1764564653315,-218.77357495,0.00016935,2]
[395242791,1764564653324,-500.0,0.00016948,2]
[395242792,1764564653334,-158.68270837,0.00016952,2]
[395242793,1764564653344,-218.77357495,0.00016952,2]
[395242794,1764564653353,-150.0,0.00016955,2]
[395242795,1764564653363,-150.0,0.00016957,2]
[395242796,1764564653373,-150.0,0.00016959,2]
[395242797,1764564653383,-150.0,0.0001696,2]
[395242798,1764564653393,-373.9288043,0.00016969,2]
[395242799,1764564653403,-11033.9250159,0.00016969,2]
[395242800,1764564653413,-14045.2732512,0.00016969,2]
[395242801,1764564653423,-56342.5161461,0.00016969,2]
[395242802,1764564653433,-158.68270837,0.00016969,2]
[395242803,1764564653443,-218.77357495,0.00016969,2]
[395242804,1764564653453,-504.71228777,0.00016973,2]
[395242805,1764564653463,-191.85688305,0.00016973,2]
[395242806,1764564653473,-500.0,0.00016973,2]
[395242807,1764564653482,-388.21665271,0.00016973,2]
[395242808,1764564653492,-500.0,0.00016973,2]
[395242809,1764564653501,-500.0,0.00016973,2]
[395242810,1764564653511,-500.45943647,0.00016973,2]
[395242811,1764564653521,-500.0,0.00016973,2]
[395242812,1764564653530,-500.0,0.00016973,2]
[395242813,1764564653540,-500.0,0.00016973,2]
[395242814,1764564653550,-500.0,0.00016973,2]
[395242815,1764564653559,-505.70856743,0.00016973,2]
[395242816,1764564653569,-503.91137404,0.00016973,2]
[395242817,1764564653579,-499.90161086,0.00016973,2]
[395242818,1764564653589,-500.0,0.00016973,2]
[395242819,1764564653599,-569.20900345,0.00016973,2]
[395242820,1764564653609,-332.16239915,0.00016973,2]
[395242821,1764564653618,-206.01551169,0.00016973,2]
[395242822,1764564653628,-500.0,0.00016973,2]
[395242823,1764564653637,-500.62734798,0.00016973,2]
[395242824,1764564653647,-500.0,0.00016973,2]
[395242825,1764564653657,-500.0,0.00016973,2]
[395242826,1764564653666,-500.0,0.00016973,2]
[395242827,1764564653676,-500.0,0.00016973,2]
[395242828,1764564653686,-506.27683139,0.00016973,2]
[395242829,1764564653696,-500.0,0.00016973,2]
[395242830,1764564653705,-500.0,0.00016973,2]
[395242831,1764564653715,-500.70186377,0.00016973,2]
[395242832,1764564653725,-500.0,0.00016973,2]
[395242833,1764564653734,-586.42715679,0.00016973,2]
[395242834,1764564653745,-500.0,0.00016973,2]
[395242835,1764564653755,-500.0,0.00016973,2]
[395242836,1764564653766,-500.0,0.00016973,2]
[395242837,1764564653776,-453.79493009,0.00016973,2]
[395242838,1764564653786,-409.96658599,0.00016973,2]
[395242839,1764564653796,-500.0,0.00016973,2]
[395242840,1764564653805,-500.0,0.00016973,2]
[395242841,1764564653822,-500.0,0.00016973,2]
[395242842,1764564653832,-500.0,0.00016973,2]
[395242843,1764564653842,-500.0,0.00016973,2]
[395242844,1764564653852,-281.76890158,0.00016973,2]
[395242845,1764564653862,-500.0,0.00016973,2]
[395242846,1764564653872,-500.0,0.00016973,2]
[395242847,1764564653881,-217.00327303,0.00016973,2]
[395242848,1764564653892,-356.06806903,0.00016973,2]
[395242849,1764564653903,-500.0,0.00016983,2]
[395242850,1764564653913,-250.0,0.00016986,5]
[395242851,1764564653924,-153.31902391,0.00016986,2]
[395242852,1764564653933,-258.82276166,0.00016986,2]
[395242853,1764564653943,-158.68270837,0.00016986,2]
[395242854,1764564653954,-150.42787237,0.00016986,2]
[395242855,1764564653964,-255.96291344,0.00016986,2]
[395242856,1764564653974,-218.77357495,0.00016986,2]
[395242857,1764564653984,-151.40541107,0.00016986,2]
[395242858,1764564653995,-150.0,0.00016986,2]
[395242859,1764564654005,-202.34922021,0.00016986,2]
[395242860,1764564654015,-171.19163981,0.00016986,2]
[395242861,1764564654026,-152.43824806,0.00016986,2]
[395242862,1764564654036,-600.0,0.00016986,2]
[395242863,1764564654046,-1384.40824377,0.00016989,2]
[395242864,1764564654055,-853.45686668,0.00016989,2]